Cogmind - Beta 10.1 @@@ ROGUE MODE // 2020.09.25 @ 15:16:27 Player: HOTSOUP Result: Destroyed by S-10 Pest with Light Assault Rifle Performance ------------- Evolutions (0) 0 Regions Visited (1) 200 Robots Destroyed (6) 30 Value Destroyed (157) 157 Prototype IDs (0) 0 Alien Tech Used (0) 0 Bonus (0) 0 TOTAL SCORE: 387 Bonus ------- None Cogmind --------- Core Integrity 0/250 Matter 290/300 Energy 89/100 System Corruption 0% Temperature Cool (0) Movement Flying (40) Location -10/Materials Parts ------- > --- POWER (1) -------- (None) > --- PROPULSION (2) --- Flight Unit > --- UTILITY (2) ------ (None) > --- WEAPON (2) ------- (None) > --- INVENTORY (4) ---- (None) Peak State ------------ > --- POWER ------------ (None) > --- PROPULSION ------- (None) > --- UTILITY ---------- Sensor Array Signal Interpreter > --- WEAPON ----------- Small Laser Assault Rifle > --- INVENTORY -------- (None) [Rating: 4] Favorites ----------- Power None Propulsion Flight Unit Flight Unit Flight Unit Utility Sensor Array Device Sensor Array Processor Signal Interpreter Weapon Assault Rifle Energy Gun Small Laser Ballistic Gun Assault Rifle Build | -11 -10 ------- Run | Scr Mat Slots Evolved . | . . Power . | . . Propulsion . | . . Utility . | . . Weapon . | . . Parts Attached 9 | 2 7 Power . | . . Engine . | . . Core . | . . Reactor . | . . Propulsion 1 | . 1 Treads . | . . Leg . | . . Wheel . | . . Hover . | . . Flight 1 | . 1 Utility 3 | . 3 Device 2 | . 2 Storage . | . . Processor 1 | . 1 Hackware . | . . Protection . | . . Artifact . | . . Weapon 5 | 2 3 Energy Gun 2 | 1 1 Energy Cannon . | . . Ballistic Gun 3 | 1 2 Ballistic Cannon . | . . Launcher . | . . Special Weapon . | . . Impact Weapon . | . . Slashing Weapon . | . . Piercing Weapon . | . . Special Melee Weapon . | . . Unidentified Prototypes . | . . Parts Lost 3 | . 3 Power . | . . Propulsion . | . . Utility 1 | . 1 Weapon 2 | . 2 Highest Loss Streak 3 | . 3 Average Slot Usage (%) 41 | . 41 Device 12 | . 12 Processor 2 | . 2 Energy Gun 12 | . 12 Ballistic Gun 13 | . 13 Naked Turns 16 | . 16 Heaviest Build 4 | 3 4 Greatest Support 4 | 3 4 Greatest Overweight (x) 1 | . 1 Average Overweight (x) . | . . Largest Inventory Capacity 4 | 4 4 Average Capacity 4 | 4 4 Most Carried 1 | . 1 Average Carried . | . . Final Capacity 4 | 4 4 Final Carried . | . . Class Distribution -------------------- 100% | Mutant Dominant Class ---------------- Mutant | -10/Materials Resources | -11 -10 ----------- Run | Scr Mat Matter Collected 307 | 218 89 Remotely . | . . Salvage Created 201 | . 201 Parts 15 | . 15 Haulers Intercepted . | . . Recyclers Shooed . | . . Parts Field Recycled . | . . Retrieved Matter . | . . Parts Self-Destructed . | . . Prevented . | . . Kills | -11 -10 ------- Run | Scr Mat Combat Hostiles Destroyed 4 | . 4 Melee 1 | . 1 Guns 3 | . 3 Classes Destroyed 3 | . 3 Watcher 2 | . 2 Swarmer 1 | . 1 Grunt 3 | . 3 Best Kill Streak 3 | . 3 Combat Bots Only 2 | . 2 Max Kills in Single Turn 1 | . 1 Gunslinging . | . . Exploded . | . . Melee 1 | . 1 Uniques/NPCs Destroyed . | . . Combat | -11 -10 -------- Run | Scr Mat Damage Taken 394 | . 394 Core 253 | . 253 Absorbed by Shields . | . . Core Remaining (%) 100 | 100 . Volleys Fired 19 | . 19 Largest 2 | . 2 Hottest 60 | . 60 Shots Fired 31 | . 31 Gun 31 | . 31 Cannon . | . . Launcher . | . . Special . | . . Kinetic 19 | . 19 Thermal 12 | . 12 Explosive . | . . Electromagnetic . | . . Robot Hit Streak 7 | . 7 Robot Miss Streak 1 | . 1 Penetration Max . | . . Secondary Targets . | . . Shots Hit Robots 22 | . 22 Core Hits 12 | . 12 Critical Hits 1 | . 1 Critical Kills 1 | . 1 Critical Parts Destroyed . | . . Melee Attacks . | . . Impact . | . . Slashing . | . . Piercing . | . . Sneak Attacks . | . . Combat Hostiles . | . . Follow-up Attacks . | . . Damage Inflicted 276 | . 276 Guns 260 | . 260 Cannons . | . . Explosions . | . . Melee . | . . Ramming 16 | . 16 Kinetic 194 | . 194 Thermal 66 | . 66 Explosive . | . . Electromagnetic . | . . Impact . | . . Slashing . | . . Piercing . | . . Highest Corruption . | . . Average Corruption . | . . Corruption Purged . | . . Overload Shots . | . . Overflow Damage . | . . Projectiles . | . . Explosions . | . . Melee . | . . Knockbacks . | . . Impact . | . . Kinetic . | . . Secondary . | . . Self-Inflicted Damage 7 | . 7 Shots . | . . Rammed 6 | . 6 Targets Rammed 6 | . 6 Kicked . | . . Crushed . | . . Highest Temperature 15 | . 15 Average Temperature 5 | . 5 Received Heat Transfer 114 | . 114 Siege Activations . | . . Robots Corrupted . | . . Combat Hostiles . | . . Parts Fried . | . . Impact Corruptions . | . . Robots Melted . | . . Combat Hostiles . | . . Parts Melted . | . . Heat Transferred 150 | . 150 Parts Sabotaged . | . . Parts Stolen . | . . Parts Stripped . | . . Power Chain Reactions . | . . Missiles Intercepted . | . . Alert | -11 -10 ------- Run | Scr Mat Peak Influence 92 | . 92 Initial . | . . Average 27 | . 28 Maximum Alert Level . | . . Low Security (%) 100 | 100 100 Level 1 . | . . Level 2 . | . . Level 3 . | . . Level 4 . | . . Level 5 . | . . High Security . | . . Max Security . | . . Squads Dispatched 1 | . 1 Investigation 1 | . 1 Extermination . | . . Reinforcement . | . . Assault . | . . Garrison . | . . Intercept . | . . Construction Impeded . | . . Haulers Reinforced . | . . Stealth | -11 -10 --------- Run | Scr Mat Distress Signals 1 | . 1 Communications Jammed . | . . Distress Signals . | . . Times Spotted 13 | . 13 Peak Tracking Total 5 | . 5 Tactical Retreats 1 | . 1 Traps | -11 -10 ------- Run | Scr Mat Traps Triggered 3 | . 3 Indirectly . | . . Trap Hack Attempts . | . . Triggered . | . . Disarmed . | . . Reprogrammed . | . . Reused . | . . Traps Extracted . | . . Installed . | . . Triggered . | . . Machines | -11 -10 ---------- Run | Scr Mat Machines Disabled . | . . Max in Single Turn . | . . Machines Sabotaged . | . . Garrisons Compromised . | . . Overloaded Fab Kills . | . . Fab Network Shutdowns . | . . Hacking | -11 -10 --------- Run | Scr Mat Machines Accessed 3 | . 3 Terminals 3 | . 3 Fabricators . | . . Repair Stations . | . . Recycling Units . | . . Scanalyzers . | . . Garrison Access . | . . Total Hacks 8 | . 8 Successful 5 | . 5 Failed 3 | . 3 Catastrophic 1 | . 1 Database Lockouts . | . . Manual 6 | . 6 Terminals 8 | . 8 Fabricators . | . . Repair Stations . | . . Recycling Units . | . . Scanalyzers . | . . Garrison Access . | . . Terminal Hacks 2 | . 2 Dispatch Records 1 | . 1 Zone Layout 1 | . 1 Fabricator Hacks . | . . Repair Station Hacks . | . . Recycling Unit Hacks . | . . Scanalyzer . | . . Garrison Access Hacks . | . . Unauthorized Hacks 3 | . 3 Terminals 3 | . 3 Track 1 | . 1 Botnet 2 | . 2 Fabricators . | . . Repair Stations . | . . Recycling Units . | . . Scanalyzers . | . . Garrison Access . | . . Data Cores Recovered . | . . Used . | . . Hacking Detections 3 | . 3 Full Trace Events 1 | . 1 Feedback Events . | . . Feedback Blocked . | . . Robot Schematics Acquired . | . . Robots Built . | . . Matter . | . . Time . | . . Total Robot Build Rating . | . . Part Schematics Acquired . | . . Parts Built . | . . Matter . | . . Time . | . . Total Part Build Rating . | . . Parts Repaired . | . . Time . | . . Parts Recycled . | . . Recycled Matter . | . . Retrieved Matter . | . . Retrieved Components . | . . Parts Scanalyzed . | . . Part Schematics Acquired . | . . Parts Damaged . | . . Bothacking | -11 -10 ------------ Run | Scr Mat Used RIF Installer . | . . Robots Hacked . | . . Non-combat . | . . Combat . | . . Robot Hacks Applied . | . . Relay Couplers Released . | . . Robots Rewired . | . . Allies Hacked . | . . Hacks Repelled . | . . Allies | -11 -10 -------- Run | Scr Mat Total Allies . | . . Largest Group . | . . Highest-Rated Group . | . . Highest-Rated Ally . | . . Total Orders . | . . Ally Attacks . | . . Total Damage . | . . Kills . | . . Allies Corrupted . | . . Allies Melted . | . . Intel | -11 -10 ------- Run | Scr Mat Robot Analysis Total . | . . Derelict Logs Recovered . | . . Drone Launches . | . . Drone Recoveries . | . . Exploration | -11 -10 ------------- Run | Scr Mat Turns Passed 473 | 19 454 Spaces Moved 361 | 33 328 Core 354 | 33 321 Treads . | . . Legs . | . . Wheels . | . . Hover . | . . Flight 7 | . 7 Fastest Speed 40 | 50 40 Average Speed 80 | 50 83 Slowest Speed 100 | 50 100 Overloaded Moves . | . . Propulsion Burnouts . | . . Robots Hopped . | . . Cave-ins Triggered . | . . Exploration Rate (%) 30 | 3 57 Regions Visited 1 Branch Regions . Pre-discovered Areas . | . . Known Exits Taken . | . . Unknown Exits Taken 1 | 1 . Scrap Searched . | . . Spaces Dug . | . . Terrain Destroyed . | . . Melee . | . . Projectile . | . . AOE . | . . Terrain Rammed . | . . Walls Destroyed . | . . Machines Disabled . | . . Actions | -11 -10 --------- Run | Scr Mat Total 508 | 34 474 Wait 112 | . 112 Move 360 | 32 328 Hop . | . . Pick Up 2 | . 2 Fast Attach 7 | 2 5 Attach 2 | . 2 Detach . | . . Swap . | . . Drop . | . . Fire 19 | . 19 Melee . | . . Ram 6 | . 6 Kick . | . . Crush . | . . Escape Stasis . | . . Rewire . | . . Trap . | . . Miscellaneous . | . . Route ------- -11/Scrapyard -10/Materials (discovered 2 exits: [*Min x2]) History --------- Turn | Location | Event 5 | -11/Scrapyard | Discovered new exit (range 15) 20 | -11/Scrapyard | Entered Materials 20 | -10/Materials | Discovered new exit (range 7) 264 | -10/Materials | Discovered new exit (range 14) 311 | -10/Materials | Build established: Mutant 458 | -10/Materials | Core integrity fell below 50% 467 | -10/Materials | Core integrity fell below 20% 474 | -10/Materials | Destroyed by S-10 Pest with Light Assault Rifle Last Messages --------------- 00402_ Connecting with Terminal... 00402_ ALERT: Suspicious activity at Terminal M005. Dispatching Investigation squad. 00411_ O-16 Technician: "IFF HANDSHAKE FAILED. SECURING TERMINAL." 00425_ Sml. Laser destroyed. 00436_ G-34 Mercenary destroyed. 00453_ Assault Rifle destroyed. 00454_ Sensor Array destroyed. 00456_ Triggered Blade Trap. 00456_ Massive razor-sharp blades shoot up from within the floor. 00456_ Signal Interpreter severed. 00462_ Slammed into S-10 Pest. 00463_ Destabilizing: Core damaged (-12). 00464_ Slammed into S-10 Pest. 00466_ U-05 Engineer lays Concrete. 00466_ Slammed into S-10 Pest. 00467_ Destabilizing: Core damaged (-5). 00468_ Slammed into S-10 Pest. 00468_ S-10 Pest destroyed. 00470_ Acquired Flight Unit. Map ----- +----------------------------------------------------+ | | | | | | | | | | | ?????????????????????????????????????????????????? | | ?????????????????????######??????????????????????? | | ????????????????????? #??????????????????????? | | ????????????????????"" #??????????????????????? | | ?????????????????# """ #??????????????????????? | | ?????????????????# """ #??????????????????????? | | ?????????????????# #??????????????????????? | | ?????????????????# """ #???????????#??????????? | | ?????????????????# """ #?????????? #??????????? | | ?????????????????# """ #????????? #??????????? | | ?????????????????# #???????? #??????????? | | ?# ###+#############+########### ###????????? | | ?# #????????? | | ?# %=% +????????? | | ?# s %[ #????????? | | ????????##### #######u s###+######### #????????? | | ????????????# #?????# k # #???????????????? | | ????????????# #?????# # """ #???????????????? | | ????????????# #?????# # """ #???????????????? | | ????????????# #?????# # """ #???????????????? | | ????????????# ####### @# """ #???????????????? | | ???########?# # # # """ #???????????????? | | ???# """ #?# # # # #???????????????? | | ???# "T" #?# # # # ????#???????????????? | | ???# ### # # # ????????????????????? | | ???# [[ ! + # # ######### ?????????????? | | ???# [ ### # # ????????????? | | #### #?# # # ????????????? | | ##+####### # +% ????????????? | | # ## #####???????????????????? | | + ##k????????????????????????? | | # ## ????????????????????????? | | ##+####### # ## ????????????????????????? | | ## ##### #######? ????????????????????????? | | ## ##""" ??????? ????????????????????????? | | ## ##" ??????? ????????????????????????? | | %+ ##"! #???????????????????????????????? | | ## ##"" < #???????????????????????????????? | | ### ##"| #???????????????????????????????? | | ### ##" #???????????????????????????????? | | T## ##""" #???????????????????????????????? | | ### ##### ##???????????????????????????????? | | #?######???# #????????????????????????????????? | | #??????????# #????????????????????????????????? | | #??????????# #????????????????????????????????? | +----------------------------------------------------+ Best States ------------- Heat Dissipation 25 Energy Generation 5 Energy Capacity 100 Matter Stores 300 Matter Capacity 300 Sight Range 16 Robot Scan Range 10 Terrain Scan Density 10 Evasion (%) 50 Item Schematics ----------------- None Robot Schematics ------------------ None Fabricated ------------ Nothing Alien Tech Used ----------------- None Achievements -------------- None Challenges ------------ None Game ------ Seed ShadeCompactRouter Manual? 0 Play Time 00:11:42 Cumulative 60.5 hours Start 2020.09.25 @ 15:09:40 End 2020.09.25 @ 15:16:27 Sessions 1 Manual Loads 0 Difficulty Rogue Special Mode None Game No. 77 Rogue 54 Adventurer 22 Explorer 1 Win Type - Total 1 Types 1/0/0/0/0/0/0/0/0 Lore% 34 Gallery% 44 Achievement% 35 Wizard Run 0 Options --------- ASCII 0 Keyboard 0 Movement Numpad Keybinds 0 Fullscreen 1 Font 14/SmallcapsGlow Map View 84x54 Tactical HUD 1 Map Filters NONE Filters NONE Steam 1 RUN: 5a22084d-c6c9-4d6e-a891-cbc24ac8dee4